bitfinex/quotes_ETHUSD_20250924
["timestamp","ask_amount","ask_price","bid_price","bid_amount"]
[1758689733962,0.78908128,4153.4,4153.0,0.12]
[1758689734745,0.4657,4153.4,4153.0,0.12]
[1758689734946,2.40772603,4153.3,4153.0,0.12]
[1758689735144,2.40793516,4153.0,4152.6,0.12]
[1758689735474,0.7062,4153.2,4152.4,0.12]
[1758689735674,2.4080062,4152.9,4152.4,0.12]
[1758689735972,2.87371614,4152.8,4152.4,0.12]
[1758689736150,0.4657,4152.8,4152.4,0.12]
[1758689736349,2.40813695,4152.6,4152.0,1.425]
[1758689736557,2.40813695,4152.6,4152.1,0.12]
[1758689736943,0.2405,4152.7,4152.1,0.12]
[1758689738102,0.2405,4152.7,4152.1,2.52841552]
[1758689738281,0.2405,4153.4,4152.2,0.02408361]
[1758689738578,0.12,4153.2,4152.5,2.52818363]
[1758689738784,0.12,4153.2,4152.5,0.12]
[1758689739146,2.40784712,4153.1,4152.5,0.12]
[1758689739585,2.40789915,4153.0,4152.5,0.12]
[1758689739786,2.40784908,4153.1,4152.5,0.12]
[1758689739992,2.64797186,4153.8,4152.6,2.40812177]
[1758689740288,0.12,4153.7,4153.0,0.12]
[1758689740450,2.4076083,4153.5,4153.0,0.12]
[1758689740649,0.12,4153.7,4153.0,0.12]
[1758689740845,2.40772922,4153.3,4153.0,0.12]
[1758689741050,2.40772922,4153.3,4151.9,3.0]
[1758689741051,3.1140367,4153.2,4152.3,4.107]
[1758689741282,3.1140367,4153.2,4152.7,0.12]
[1758689741283,0.7062,4153.2,4152.7,0.12]
[1758689741456,2.88926993,4153.3,4152.7,0.12]
[1758689741664,2.40783992,4153.1,4152.7,0.12]
[1758689741881,3.08728942,4153.2,4152.7,0.12]
[1758689742086,2.65598942,4153.2,4152.7,0.12]
[1758689742276,0.4313,4153.1,4152.7,0.12]
[1758689742802,0.4313,4153.0,4152.7,0.12]
[1758689743930,2.40801387,4152.8,4152.7,0.12]
[1758689744125,0.4313,4152.8,4152.3,4.107]
[1758689744419,2.40794425,4153.0,4152.4,0.12]
[1758689744599,0.56654548,4153.0,4152.4,0.12]
[1758689744804,2.40803166,4152.8,4152.4,0.12]
[1758689745124,3.08759505,4152.7,4152.4,0.12]
[1758689745657,0.6795,4152.7,4152.4,0.12]
[1758689745976,0.4313,4152.6,4152.4,0.12]
[1758689746199,0.6795,4152.6,4152.4,0.12]
[1758689746610,0.4313,4152.6,4152.4,0.12]
[1758689746797,2.83944678,4152.6,4152.1,4.226]
[1758689747002,0.4313,4152.6,4152.1,4.226]
[1758689747199,2.83943888,4152.6,4152.2,0.21979649]
[1758689747509,2.83943481,4152.6,4152.2,0.21979649]
[1758689747917,0.4313,4152.6,4152.2,0.21979649]
[1758689748211,2.83943481,4152.6,4152.2,0.21979649]
[1758689748415,0.4313,4152.6,4152.2,0.21979649]
[1758689748622,0.3682,4152.8,4152.2,0.21979649]
[1758689749105,2.40808059,4152.7,4152.2,0.21979649]
[1758689749282,2.40814318,4152.6,4152.2,0.21979649]
[1758689749477,2.40808366,4152.7,4152.2,0.21979649]
[1758689750113,0.3682,4152.8,4152.2,0.21979649]
[1758689750114,2.77622408,4152.8,4152.2,0.21979649]
[1758689750317,2.83930483,4152.9,4152.3,0.21979649]
[1758689750491,2.40803161,4152.8,4152.4,0.21979649]
[1758689750817,2.83933161,4152.8,4152.5,0.21979649]
[1758689750993,2.83933161,4152.8,4152.4,0.21979649]
[1758689751193,0.56154196,4152.8,4152.5,0.21979649]
[1758689751394,0.56154196,4152.8,4151.8,0.47223303]
[1758689751395,2.40843218,4152.1,4151.3,2.084]
[1758689751598,2.40859545,4151.8,4151.4,0.22114823]
[1758689751919,2.40854559,4151.9,4151.5,0.22114823]
[1758689752103,2.40854559,4151.9,4151.6,0.22114823]
[1758689752433,2.83989386,4151.8,4151.7,0.22114823]
[1758689752578,2.83989386,4151.8,4151.4,0.22114823]
[1758689752579,2.40873705,4151.6,4151.4,0.22114823]
[1758689752784,2.40873705,4151.6,4151.5,0.22114823]
[1758689753022,2.84003705,4151.6,4151.5,0.22114823]
[1758689753257,2.84003705,4151.6,4151.3,6.66685726]
[1758689753258,0.4313,4151.6,4151.3,6.66685726]
[1758689754266,0.4313,4151.6,4151.3,6.19]
[1758689754759,0.2482,4151.7,4151.3,6.19]
[1758689755147,2.40871462,4151.6,4151.3,6.19]
[1758689755514,2.65685543,4151.7,4151.3,6.19]
[1758689755753,3.08815543,4151.7,4151.3,6.19]
[1758689756256,0.6795,4151.7,4151.3,6.19]
[1758689756814,2.83995303,4151.7,4151.3,6.19]
[1758689757417,2.40865303,4151.7,4151.3,6.19]
[1758689757924,2.83995303,4151.7,4151.3,6.19]
[1758689758126,0.6795,4152.2,4151.3,6.19]
[1758689758330,2.40865685,4151.7,4151.3,6.19]
[1758689758535,2.83995685,4151.7,4151.3,6.19]
[1758689759441,2.40871612,4151.6,4151.3,6.19]
[1758689760044,0.4313,4151.7,4151.3,6.19]
[1758689760225,2.40862335,4151.8,4151.3,6.19]
[1758689760427,2.40865956,4151.7,4151.3,6.19]
[1758689761276,2.40860925,4151.8,4151.3,6.19]
[1758689761483,2.40860925,4151.8,4151.5,0.12]
[1758689761779,0.12,4152.2,4151.5,0.12]
[1758689762071,2.40859242,4151.9,4151.5,0.12]
[1758689762231,2.40841983,4152.1,4151.5,0.12]
[1758689762431,2.40860783,4151.8,4151.5,0.12]
[1758689762633,2.72921181,4152.1,4151.5,0.12]
[1758689763277,2.40858924,4151.9,4151.5,0.12]
[1758689763435,2.72921181,4152.1,4151.1,2.90499791]
[1758689763436,6.87997784,4152.0,4151.1,0.02]
[1758689763630,6.87997784,4152.0,4150.1,0.02]
[1758689763631,2.40923217,4150.7,4150.1,0.02]
[1758689764170,3.08873217,4150.7,4150.1,0.02]
[1758689764345,2.52923217,4150.7,4150.1,0.02]
[1758689764932,3.20873217,4150.7,4150.1,0.02]
[1758689765142,4.48111759,4150.7,4150.1,0.02]
[1758689765348,4.48111759,4150.7,4150.1,1.601]
[1758689765744,4.48111759,4150.7,4150.1,0.02]
[1758689767870,7.48111759,4150.7,4150.1,0.02]
[1758689769372,2.40952243,4150.2,4150.1,0.02]
[1758689769573,5.40952243,4150.2,4150.1,0.02]
[1758689769777,6.88102243,4150.2,4150.1,0.02]
[1758689769979,8.22066876,4150.2,4150.1,0.02]
[1758689774158,8.22066876,4150.2,4150.1,0.024]
[1758689774353,10.85616876,4150.2,4150.1,0.024]
[1758689774676,11.32616876,4150.2,4150.1,0.024]
[1758689774861,11.55256876,4150.2,4150.1,0.024]
[1758689778281,10.85616876,4150.2,4150.1,0.024]
[1758689778484,12.34456876,4150.2,4150.1,0.024]
[1758689784566,12.34456876,4150.2,4149.6,0.004]
[1758689784567,2.40981275,4149.7,4149.6,0.004]
[1758689784774,10.29876744,4149.7,4149.6,0.004]
[1758689784951,10.76876744,4149.7,4149.6,0.004]
[1758689785671,11.78716744,4149.7,4149.6,0.004]
[1758689787862,2.41004506,4149.3,4149.2,0.004]
[1758689788070,9.51704506,4149.3,4149.2,0.004]
[1758689788250,11.17974622,4149.3,4149.2,0.004]
[1758689788451,11.40614622,4149.3,4149.2,0.004]
[1758689788646,12.19814622,4149.3,4149.2,0.004]
[1758689792786,11.50174622,4149.3,4149.2,0.004]
[1758689793358,12.02116214,4149.3,4149.2,0.004]
[1758689794456,6.60274622,4149.3,4149.2,0.004]
[1758689794661,9.51704506,4149.3,4149.2,0.004]
[1758689795879,3.0,4149.3,4149.2,0.004]
[1758689796081,3.0,4149.3,4149.2,0.0281]
[1758689796082,9.51704506,4149.3,4149.2,0.0281]
[1758689796283,3.0,4149.3,4149.2,0.0281]
[1758689796486,0.12,4149.4,4149.2,0.0281]
[1758689796997,0.12,4149.4,4149.2,0.004]
[1758689797290,0.12,4149.4,4149.3,0.0241]
[1758689797493,2.41004506,4149.3,4149.2,0.004]
[1758689801888,2.52999672,4149.4,4149.2,0.004]
[1758689802125,0.12,4149.4,4149.2,0.004]
[1758689802322,7.19,4151.3,4149.2,0.004]
[1758689802323,1.09,4150.1,4149.3,0.26791141]
[1758689802524,2.40964919,4150.0,4149.4,0.0241]
[1758689802914,3.49959063,4150.1,4149.4,0.0241]
[1758689803288,0.4407,4150.6,4149.4,0.0241]
[1758689803289,6.51552748,4150.2,4149.4,0.0241]
[1758689803540,5.40960331,4150.1,4149.4,2.43407978]
[1758689803687,5.40960331,4150.1,4149.5,0.0241]
[1758689803894,2.40979311,4149.8,4149.2,0.004]
[1758689804295,4.106,4149.9,4149.2,0.004]
[1758689804550,4.106,4149.9,4149.2,2.43819808]
[1758689804893,6.5157079,4149.9,4149.2,2.43819808]
[1758689805819,6.5157079,4149.9,4149.2,0.0281]
[1758689807032,4.106,4149.9,4149.2,0.51535053]
[1758689807215,2.40941913,4150.4,4149.3,0.04820045]
[1758689807392,3.0,4150.1,4149.4,2.40994269]
[1758689807597,2.40945537,4150.4,4149.5,0.0241]
[1758689807598,3.0,4150.4,4149.5,0.0241]
[1758689808033,3.0,4150.4,4149.3,2.085]
[1758689808034,2.40971834,4149.9,4149.3,2.085]
[1758689808529,2.40964803,4150.0,4149.3,2.085]
[1758689808737,2.40969869,4149.9,4149.3,2.085]
[1758689809300,2.40976048,4149.8,4149.3,2.085]
[1758689809726,2.40976679,4149.8,4149.3,2.085]
[1758689809911,2.40976679,4149.8,4149.2,4.11]
[1758689809912,2.40976679,4149.8,4149.2,0.004]
[1758689810237,5.40958537,4150.1,4149.2,0.004]
[1758689810418,3.0,4150.1,4149.2,0.004]
[1758689810625,2.40969661,4149.9,4149.2,0.004]
[1758689811200,0.2474,4150.0,4149.2,2.41409767]
[1758689811201,2.40965221,4150.0,4149.2,2.41409767]
[1758689811398,5.40959093,4150.1,4149.3,2.41003817]
[1758689811597,3.0,4150.1,4149.2,0.004]
[1758689811834,2.40968458,4150.0,4149.2,2.41409614]
[1758689812042,2.40975921,4149.8,4149.2,0.004]
[1758689812238,2.40975921,4149.8,4149.3,0.12]
[1758689812409,2.84945626,4149.8,4149.3,0.12]
[1758689812739,3.09685626,4149.8,4149.3,0.12]
[1758689813638,0.6871,4149.8,4149.3,0.12]
[1758689814023,2.40970875,4149.9,4149.3,0.12]
[1758689814228,0.001,4149.9,4149.3,0.12]
[1758689814398,2.40981541,4149.7,4149.3,0.12]
[1758689814605,0.6871,4149.6,4149.3,0.12]
[1758689815237,0.2474,4149.6,4149.3,0.12]
[1758689815437,0.6871,4149.6,4149.3,0.12]
[1758689816820,0.4397,4149.6,4149.3,0.12]
[1758689817024,0.001,4149.9,4149.3,0.12]
[1758689818993,0.001,4149.9,4149.3,2.53000255]
[1758689819293,0.001,4149.9,4149.3,0.12]
[1758689819666,2.40975468,4149.8,4149.3,0.12]
[1758689820101,2.40988574,4149.6,4149.3,0.12]
[1758689820260,2.65728574,4149.6,4149.3,0.12]
[1758689820462,0.6871,4149.6,4149.3,0.12]
[1758689820881,0.4397,4149.6,4149.3,0.12]
[1758689822091,2.40975676,4149.8,4149.3,0.12]
[1758689822776,2.4098321,4149.7,4149.3,0.12]
[1758689822977,2.40977041,4149.8,4149.3,0.12]
[1758689823177,2.41070906,4149.9,4149.3,0.12]
[1758689823418,2.40991167,4149.6,4149.3,0.12]
[1758689823919,3.09701167,4149.6,4149.3,0.12]
[1758689824213,3.09704489,4149.5,4149.3,0.12]
[1758689824648,0.2474,4149.4,4149.2,0.004]
[1758689824921,0.6871,4149.4,4149.2,0.004]
[1758689825217,0.12,4149.7,4149.2,0.004]
[1758689825430,0.12,4149.7,4149.2,2.41405034]
[1758689825612,0.12,4149.7,4149.2,0.004]
[1758689825793,0.12,4149.7,4149.3,2.41004506]
[1758689826124,0.001,4149.9,4149.4,5.43925148]
[1758689826421,0.001,4149.9,4149.8,7.94490616]
[1758689826724,0.001,4149.9,4149.8,7.82490616]
[1758689826927,0.001,4149.9,4149.8,7.96900616]
[1758689827136,0.001,4149.9,4149.8,9.09173325]
[1758689827436,0.001,4149.9,4149.8,12.09173325]
[1758689827728,0.001,4149.9,4149.8,12.88373325]
[1758689829083,0.001,4149.9,4149.8,12.86458177]
[1758689829310,0.001,4149.9,4149.8,18.27973325]
[1758689829689,0.001,4149.9,4149.8,5.73748177]
[1758689829895,0.001,4149.9,4149.8,9.86458177]
[1758689830092,0.001,4149.9,4149.8,15.27973325]
[1758689830399,0.001,4149.9,4149.8,15.25563325]
[1758689830596,0.001,4149.9,4149.8,9.84048177]
[1758689830813,0.001,4149.9,4149.8,9.86458177]
[1758689832646,0.001,4149.9,4149.8,9.84048177]
[1758689832817,0.001,4149.9,4149.8,9.83948177]
[1758689833706,0.001,4149.9,4149.8,3.65248177]
[1758689833916,0.001,4149.9,4149.8,8.71675468]
[1758689837923,0.001,4149.9,4149.8,6.306]
[1758689837924,0.6944,4149.9,4149.8,6.306]
[1758689838293,0.6944,4149.9,4149.8,8.71575468]
[1758689839225,0.001,4149.9,4149.8,8.71575468]
[1758689839530,0.001,4149.9,4149.8,0.12]
[1758689839762,0.001,4149.9,4149.8,4.101]
[1758689839763,0.6944,4149.9,4149.8,4.101]
[1758689843216,0.6944,4149.9,4149.8,4.1]
[1758689844543,0.001,4149.9,4149.8,4.1]
[1758689844747,0.001,4149.9,4149.8,6.50975468]
[1758689844945,0.001,4149.9,4149.8,4.1]
[1758689845126,0.001,4149.9,4149.8,4.12409754]
[1758689845323,0.001,4149.9,4149.8,6.50975468]
[1758689845531,0.001,4149.9,4149.8,4.22]
[1758689845832,0.001,4149.9,4149.8,6.65385222]
[1758689846028,0.001,4149.9,4149.8,6.62975468]
[1758689846934,0.001,4149.9,4149.8,7.55781561]
[1758689847143,0.001,4149.9,4149.8,6.43371561]
[1758689847355,0.001,4149.9,4149.8,12.61871561]
[1758689847932,0.001,4149.9,4149.8,8.71475468]
[1758689848369,0.6944,4149.9,4149.8,0.12]
[1758689848532,0.6944,4149.9,4149.8,2.154]
[1758689849941,0.6944,4149.9,4149.5,2.085]
[1758689849942,0.6944,4149.9,4149.6,4.1]
[1758689850142,0.6934,4149.8,4149.6,4.22]
[1758689850336,0.6934,4149.7,4149.6,4.22]
[1758689852037,0.6934,4149.7,4149.6,4.224]
[1758689853665,0.6934,4149.7,4149.6,0.004]
[1758689853837,0.6934,4149.7,4149.6,4.104]
[1758689855103,0.6934,4149.7,4149.6,0.004]
[1758689855287,4.21762759,4149.7,4149.3,0.004]
[1758689855467,2.40998698,4149.4,4149.3,0.004]
[1758689855671,2.41004506,4149.3,4148.6,1.1]
[1758689855873,3.10344506,4149.3,4148.6,1.1]
[1758689856066,2.41027742,4148.9,4148.6,1.1]
[1758689856463,3.10367742,4148.9,4148.6,1.1]
[1758689858779,3.20603998,4148.9,4148.6,1.1]
[1758689858978,3.10367742,4148.9,4148.6,1.1]
[1758689859176,3.10367742,4148.9,4148.1,0.02]
[1758689860392,3.2027295,4148.9,4148.1,0.02]
[1758689860591,3.87919918,4148.9,4148.1,0.02]
[1758689861002,3.7801471,4148.9,4148.1,0.02]
[1758689865892,7.5721471,4148.9,4148.1,0.02]
[1758689871416,6.7801471,4148.9,4148.1,0.02]
[1758689874053,3.67646968,4148.9,4148.1,0.02]
[1758689874340,3.67646968,4148.9,4148.5,0.0281]
[1758689874341,5.53027742,4148.9,4148.5,0.0281]
[1758689874928,5.53027742,4148.9,4148.5,0.004]
[1758689875128,6.20727742,4148.9,4148.5,0.004]
[1758689875943,5.77607742,4148.9,4148.5,0.004]
[1758689876113,5.53027742,4148.9,4148.5,0.004]
[1758689878309,6.20727742,4148.9,4148.5,0.004]
[1758689878553,7.47912217,4148.9,4148.5,0.004]
[1758689880618,7.04792217,4148.9,4148.5,0.004]
[1758689881473,3.12,4148.9,4148.5,0.004]
[1758689881630,2.41116771,4149.1,4148.8,0.06060001]
[1758689881835,2.41116771,4149.1,4148.9,0.0241]
[1758689882030,2.41021932,4149.0,4148.8,1e-08]
[1758689882361,2.95139935,4148.9,4148.8,1e-08]
[1758689882569,3.50259935,4148.9,4148.8,1e-08]
[1758689882858,3.74839935,4148.9,4148.8,1e-08]
[1758689883858,0.12,4148.9,4148.8,1e-08]
[1758689884219,2.53027742,4148.9,4148.8,1e-08]
[1758689885875,3.20727742,4148.9,4148.8,1e-08]
[1758689889059,2.53027742,4148.9,4148.8,1e-08]
[1758689889265,3.20727742,4148.9,4148.8,1e-08]
[1758689889478,4.17902247,4148.9,4148.8,1e-08]
[1758689889980,12.06902247,4148.9,4148.8,1e-08]
[1758689890143,12.59012585,4148.9,4148.8,1e-08]
[1758689893012,16.29577452,4148.9,4148.8,1e-08]
[1758689894100,19.29577452,4148.9,4148.8,1e-08]
[1758689894720,6.20245171,4148.6,4148.5,0.004]
[1758689894879,10.82155509,4148.6,4148.5,0.004]
[1758689895081,11.50505509,4148.6,4148.5,0.004]
[1758689895876,6.72355509,4148.6,4148.5,0.004]
[1758689896117,11.05285509,4148.6,4148.5,0.004]
[1758689896419,13.31971511,4148.6,4148.5,0.004]
[1758689901983,13.31971511,4148.6,4148.5,1e-08]
[1758689905526,15.86171511,4148.6,4148.5,1e-08]
[1758689905822,13.31971511,4148.6,4148.5,1e-08]
[1758689906131,8.53821511,4148.6,4148.5,1e-08]
[1758689906287,12.63621511,4148.6,4148.5,1e-08]
[1758689906687,13.31971511,4148.6,4148.5,1e-08]
[1758689907943,13.69778475,4148.6,4148.5,1e-08]
[1758689911757,13.01428475,4148.6,4148.5,1e-08]
[1758689912957,13.24558475,4148.6,4148.5,1e-08]
[1758689913254,13.69778475,4148.6,4148.5,1e-08]
[1758689913676,13.01428475,4148.6,4148.5,1e-08]
[1758689916784,13.69778475,4148.6,4148.5,1e-08]
[1758689917880,13.24458475,4148.6,4148.5,1e-08]
[1758689918084,13.24358475,4148.6,4148.5,1e-08]
[1758689919178,13.69578475,4148.6,4148.5,1e-08]
[1758689919983,13.01228475,4148.6,4148.5,1e-08]
[1758689920574,12.63421511,4148.6,4148.5,1e-08]
[1758689921360,12.58421511,4148.6,4148.5,1e-08]
[1758689922387,13.26901511,4148.6,4148.5,1e-08]
[1758689928508,13.21901511,4148.6,4148.5,1e-08]
[1758689929807,12.53421511,4148.6,4148.5,1e-08]
[1758689931118,12.77141511,4148.6,4148.5,1e-08]
[1758689931342,13.21901511,4148.6,4148.5,1e-08]
[1758689933302,12.53421511,4148.6,4148.5,1e-08]
[1758689933774,2.93155509,4148.6,4148.5,1e-08]
[1758689933910,5.41045171,4148.6,4148.5,0.06060001]
[1758689934105,5.93155509,4148.6,4148.5,0.06060001]
[1758689934302,5.93155509,4148.6,4148.5,0.02410001]
[1758689934303,3.0,4148.6,4148.5,0.02410001]
[1758689934555,0.121,4148.7,4148.5,0.06060001]
[1758689934841,2.53144496,4148.7,4148.6,0.0606]
[1758689935044,2.53144496,4148.7,4148.5,1e-08]
[1758689935045,0.121,4148.7,4148.5,1e-08]
[1758689935248,0.121,4148.7,4148.6,0.0606]
[1758689935432,0.001,4148.7,4148.6,0.1806]
[1758689935609,0.001,4148.7,4148.6,8.27373729]
[1758689936262,0.001,4148.7,4148.6,5.86328558]
[1758689936547,0.001,4148.7,4148.6,0.4064321]
[1758689936707,0.001,4148.7,4148.6,0.1806]
[1758689937571,0.001,4148.7,4148.6,2.59105171]
[1758689938272,0.001,4148.7,4148.6,0.1806]
[1758689938452,0.001,4148.7,4148.6,2.59105171]
[1758689940456,0.001,4148.7,4148.6,2.49515622]
[1758689942577,0.001,4148.7,4148.6,8.64905171]
[1758689945110,0.001,4148.7,4148.6,2.41045171]
[1758689945313,0.001,4148.7,4148.6,6.53895171]
[1758689945469,0.001,4148.7,4148.6,6.52655171]
[1758689945669,0.001,4148.7,4148.6,6.56305171]
[1758689947515,0.001,4148.7,4148.6,6.52655171]
[1758689948185,0.001,4148.7,4148.6,6.56305171]
[1758689950513,0.001,4148.7,4148.6,6.68305171]
[1758689951511,0.001,4148.7,4148.6,6.64655171]
[1758689954924,0.001,4148.7,4148.6,6.62245171]
[1758689956696,0.001,4148.7,4148.6,6.62645171]
[1758689959401,0.001,4148.7,4148.6,6.65055171]
[1758689959617,0.001,4148.7,4148.6,6.68705171]
[1758689960236,0.001,4148.7,4148.6,6.65055171]
[1758689960632,0.001,4148.7,4148.6,6.68705171]
[1758689963856,0.001,4149.1,4148.6,6.68705171]
[1758689963857,0.001,4149.1,4149.0,2.41021932]
[1758689964021,0.001,4149.1,4149.0,14.9185728]
[1758689964225,0.001,4149.1,4149.0,15.0991728]
[1758689964615,0.001,4149.2,4149.1,5.41016123]
[1758689964944,0.001,4149.6,4149.5,2.4099289]
[1758689965124,0.001,4149.6,4149.5,17.92937547]
[1758689965325,0.001,4149.6,4149.5,17.96587619]
[1758689966048,0.001,4149.6,4149.5,18.75787619]
[1758689968148,0.001,4149.6,4149.5,18.75787619]
[1758689968337,0.001,4149.6,4149.5,18.85446387]
[1758689969746,0.001,4149.6,4149.5,15.91586387]
[1758689969949,0.001,4149.6,4149.5,18.00086387]
[1758689970460,0.001,4149.6,4149.5,18.02496387]
[1758689971676,0.001,4149.6,4149.5,11.82886387]
[1758689971971,0.001,4149.6,4149.5,17.99986387]
[1758689971972,0.2328,4149.6,4149.5,17.99986387]
[1758689972371,0.001,4149.6,4149.5,17.99986387]
[1758689973357,0.696,4149.6,4149.5,17.99986387]
[1758689973673,0.001,4149.6,4149.5,17.90327619]
[1758689974879,0.001,4149.6,4149.5,11.73227619]
[1758689975077,0.001,4149.6,4149.5,17.90327619]
[1758689976355,0.696,4149.6,4149.5,17.90327619]
[1758689977558,0.696,4149.6,4149.5,11.73227619]
[1758689977886,0.696,4149.6,4149.5,17.90227619]
[1758689979698,0.696,4149.6,4149.5,11.73227619]
[1758689979896,0.696,4149.6,4149.5,17.90227619]
[1758689980276,0.696,4149.6,4149.5,12.48192271]
[1758689980473,0.696,4149.6,4149.2,2.085]
[1758689980695,0.695,4149.5,4149.2,2.085]
[1758689981011,0.695,4149.4,4149.3,4.084]
[1758689981661,0.695,4149.4,4148.6,0.004]
[1758689981887,0.695,4149.4,4148.7,5.82333859]
[1758689982098,0.6765,4149.3,4148.8,2.4103304]
[1758689982398,0.6765,4149.2,4148.9,4.084]
[1758689982718,0.6765,4149.1,4148.9,4.084]
[1758689982921,0.6765,4149.0,4148.9,4.084]
[1758689983627,0.6765,4149.0,4148.6,0.004]
[1758689983787,0.6765,4149.0,4148.7,4.084]
[1758689983989,0.6765,4148.9,4148.6,0.004]
[1758689984329,0.6765,4148.9,4148.7,4.084]
[1758689984507,0.6765,4148.8,4148.7,4.084]
[1758689991095,0.12,4149.0,4148.7,4.084]
[1758689991429,0.2411,4148.9,4148.7,4.084]
[1758689991601,0.2411,4148.8,4148.7,4.084]
[1758689991801,0.6765,4148.8,4148.7,4.084]
[1758689993130,0.6765,4148.8,4148.7,6.49439361]
[1758689993352,0.6765,4148.8,4148.7,4.084]
[1758689994249,0.12,4149.0,4148.8,2.41033551]
[1758689994426,0.12,4149.0,4148.9,4.083]
[1758689995210,0.12,4149.0,4148.9,6.49327742]
[1758689995424,0.001,4149.2,4148.9,4.083]
[1758689995834,0.6765,4149.1,4148.9,6.49326779]
[1758689996035,0.6765,4149.0,4148.9,6.49326779]
[1758689996337,0.6765,4149.0,4148.9,4.083]
[1758689996528,0.6765,4149.0,4148.6,0.004]
[1758689996721,0.6765,4149.0,4148.7,4.083]
[1758689996923,0.6765,4148.9,4148.7,6.49338803]
[1758689997129,0.6765,4148.8,4148.7,6.49338803]
[1758689997853,0.6765,4148.8,4148.7,4.083]
[1758689999354,0.6765,4148.8,4148.7,2.41039361]
[1758689999523,0.6765,4148.8,4148.7,4.083]
[1758689999718,0.6765,4148.8,4148.7,6.49339361]
[1758690000252,0.6765,4148.8,4148.7,4.083]
[1758690000420,0.6765,4148.8,4148.6,0.004]
[1758690000626,3.08689361,4148.7,4148.6,0.004]
[1758690000858,6.93661174,4148.7,4148.6,0.004]
[1758690001034,3.20245171,4148.6,4148.5,1e-08]
[1758690001235,3.20245171,4148.6,4148.3,0.004]
[1758690001236,3.20256792,4148.4,4148.3,0.004]
[1758690001449,3.20256792,4148.4,4148.0,0.004]
[1758690001450,5.41062603,4148.3,4148.0,0.004]
[1758690001646,3.39859675,4148.2,4148.0,0.004]
[1758690001847,3.9879126,4148.2,4148.0,0.004]
[1758690002154,3.6765,4148.2,4148.0,0.004]
[1758690002654,6.87918415,4148.2,4148.0,0.004]
[1758690005054,6.08718415,4148.2,4148.0,0.004]
[1758690005287,3.6765,4148.2,4148.0,0.004]
[1758690005634,6.08718415,4148.2,4148.0,0.004]
[1758690005869,6.93695517,4148.2,4148.0,0.004]
[1758690006543,7.72895517,4148.2,4148.0,0.004]
[1758690006743,6.93695517,4148.2,4148.0,0.004]
[1758690007837,7.72895517,4148.2,4148.0,0.004]
[1758690010280,6.20274226,4148.1,4148.0,0.004]
[1758690010480,12.48779317,4148.1,4148.0,0.004]
[1758690010684,13.16429317,4148.1,4148.0,0.004]
[1758690011390,13.16429317,4148.1,4147.9,0.004]
[1758690011391,6.20280038,4148.0,4147.9,0.004]
[1758690011763,6.89580038,4148.0,4147.9,0.004]
[1758690012081,8.70633259,4148.0,4147.9,0.004]
[1758690016211,7.22133259,4148.0,4147.9,0.004]
[1758690016408,8.30333259,4148.0,4147.9,0.004]
[1758690016697,10.16190038,4148.0,4147.9,0.004]
[1758690019089,10.95390038,4148.0,4147.9,0.004]
[1758690021401,3.0,4148.0,4147.9,0.004]
[1758690021586,2.41052236,4148.5,4147.9,0.004]
[1758690021587,4.082,4148.4,4147.9,0.004]
[1758690021790,4.082,4148.4,4147.9,0.0806]
[1758690021990,0.12,4148.1,4148.0,0.0766]
[1758690022301,0.12,4148.1,4148.0,0.0525]
[1758690022598,4.081,4148.8,4148.0,0.0525]
[1758690022764,4.081,4148.8,4148.1,2.4347896]
[1758690022959,4.081,4148.8,4148.2,2.41068111]
[1758690023296,6.49134574,4148.8,4148.3,0.0241]
[1758690023601,3.0,4148.7,4148.3,0.0241]
[1758690023895,4.081,4149.0,4147.9,0.0281]
[1758690024099,4.80092,4149.0,4147.9,2.49145177]
[1758690024303,4.80092,4149.0,4147.9,0.0806]
[1758690024304,0.2392,4148.9,4147.9,0.0806]
[1758690024507,0.001,4149.2,4148.0,0.048208]
[1758690024704,3.0,4148.9,4148.0,0.076608]
[1758690024876,4.003,4149.0,4148.6,2.41043087]
[1758690025079,0.001,4149.2,4148.7,0.0241]
[1758690025480,3.001,4149.2,4148.7,0.0241]
[1758690025668,4.24893527,4149.2,4148.7,0.0241]
[1758690025997,0.001,4149.2,4148.8,0.0766]
[1758690026204,0.001,4149.2,4148.9,0.0241]
[1758690026363,0.001,4149.2,4149.1,2.41016123]
[1758690026869,0.001,4149.2,4149.1,2.48676123]
[1758690027265,0.001,4149.2,4149.1,2.51086284]
[1758690027576,0.001,4149.2,4149.1,2.48676123]
[1758690029578,0.001,4149.2,4149.1,2.51086284]
[1758690029785,0.001,4149.2,4149.1,3.00297663]
[1758690031271,0.001,4149.2,4149.1,2.97887502]
[1758690032623,0.001,4149.2,4149.1,3.09887502]
[1758690035574,0.001,4149.2,4149.1,3.12297663]
[1758690036323,0.001,4149.2,4149.1,3.09887502]
[1758690037089,0.001,4149.2,4149.1,7.10027502]
[1758690037307,0.001,4149.2,4149.1,9.26187502]
[1758690038727,0.001,4149.2,4149.1,3.02227502]
[1758690039026,0.001,4149.2,4149.1,8.69216123]
[1758690039727,0.001,4149.2,4149.1,8.64876123]
[1758690039930,0.001,4149.2,4149.1,8.76876123]
[1758690040574,0.001,4149.2,4149.1,0.12]
[1758690040772,0.6701,4149.2,4149.1,0.12]
[1758690041009,0.6701,4149.2,4149.1,6.60716123]
[1758690042001,0.001,4149.2,4149.1,6.60716123]